bitfinex/quotes_ETHUSD_20240928
["timestamp","ask_amount","ask_price","bid_price","bid_amount"]
[1727496570541,0.7684,2695.3,2694.9,3.71068]
[1727496570756,0.7684,2695.3,2694.8,3.71084]
[1727496570757,0.05175217,2695.2,2694.8,3.71084]
[1727496570914,0.45301822,2695.2,2694.9,3.7107]
[1727496571108,0.05163707,2695.1,2694.9,3.7107]
[1727496571328,0.7684,2695.3,2694.9,3.7107]
[1727496571616,0.05152197,2695.0,2694.9,3.7107]
[1727496571819,1.18785288,2695.3,2694.9,3.7107]
[1727496572007,0.05149436,2695.0,2694.9,3.7107]
[1727496572211,0.7684,2695.3,2694.9,3.7107]
[1727496572408,0.05149436,2695.0,2694.9,3.7107]
[1727496572942,1.54585925,2695.3,2694.9,3.7107]
[1727496573120,0.05170089,2695.2,2694.9,3.7107]
[1727496573324,0.7684,2695.3,2694.9,3.7107]
[1727496573654,1.54585925,2695.3,2694.9,3.7107]
[1727496573850,0.05170089,2695.2,2694.9,3.7107]
[1727496574052,0.7684,2695.3,2694.9,3.7107]
[1727496574553,0.05191164,2695.2,2694.9,3.7107]
[1727496574851,0.05180839,2695.1,2694.9,3.7107]
[1727496575237,0.05170513,2695.0,2694.9,3.7107]
[1727496575567,1.82042299,2695.3,2694.9,3.7107]
[1727496575732,0.05170513,2695.0,2694.9,3.7107]
[1727496575932,1.82042299,2695.3,2694.9,3.7107]
[1727496576128,0.05191164,2695.2,2694.9,3.71062]
[1727496576335,1.82042299,2695.3,2694.9,3.71062]
[1727496576682,0.05189191,2695.2,2694.9,3.71062]
[1727496576957,5.31434068,2695.5,2694.9,3.71062]
[1727496576958,1.9854891,2695.5,2695.1,3.71043]
[1727496577118,2.72565422,2695.5,2695.1,3.71043]
[1727496577458,1.1652891,2695.5,2694.9,0.8033]
[1727496577616,1.59765925,2695.7,2695.4,3.70993]
[1727496578045,0.8202,2695.7,2695.4,3.70993]
[1727496578558,0.8202,2695.7,2695.3,3.71007]
[1727496579061,0.8202,2695.7,2695.3,7.42015]
[1727496579232,0.05202022,2695.6,2695.3,3.71007]
[1727496579920,0.05202022,2695.6,2695.4,3.70991]
[1727496580863,0.77745925,2695.8,2695.4,3.70991]
[1727496581093,0.05213528,2695.7,2695.4,3.70991]
[1727496581299,0.77745925,2695.8,2695.4,3.70991]
[1727496581462,0.05213528,2695.7,2695.4,3.70991]
[1727496581664,0.77745925,2695.8,2695.4,3.70991]
[1727496581863,0.05213528,2695.7,2695.4,3.70991]
[1727496582089,0.77745925,2695.8,2695.4,3.70991]
[1727496582291,0.05213528,2695.7,2695.4,3.70991]
[1727496582464,0.77745925,2695.8,2695.4,3.70991]
[1727496582672,0.05213528,2695.7,2695.4,3.70991]
[1727496582876,0.77745925,2695.8,2695.4,3.70991]
[1727496583073,0.05213528,2695.7,2695.4,3.70991]
[1727496583291,0.77745925,2695.8,2695.4,3.70991]
[1727496583493,0.05213528,2695.7,2695.4,3.70991]
[1727496583662,0.77745925,2695.8,2695.4,0.451321]
[1727496583865,0.38781234,2696.0,2695.6,4.15960484]
[1727496583866,0.05052485,2695.7,2695.6,4.15960484]
[1727496584065,0.38781234,2696.0,2695.7,3.70959]
[1727496584290,0.05073126,2695.9,2695.7,3.70959]
[1727496584680,0.05073126,2695.9,2695.7,7.4191]
[1727496584876,0.05073126,2695.9,2695.8,3.70947]
[1727496585507,0.05073126,2695.9,2695.7,7.41902]
[1727496585896,0.05073126,2695.9,2695.7,3.70951]
[1727496586102,0.05073126,2695.9,2695.8,3.70947]
[1727496586270,0.77745925,2696.4,2695.8,3.70947]
[1727496586474,0.05092577,2696.3,2695.9,3.7092]
[1727496586777,5.63155941,2696.5,2695.9,3.7092]
[1727496586976,0.04917854,2696.2,2695.9,3.7092]
[1727496587283,0.38778016,2696.5,2696.2,3.70888]
[1727496587494,8.12745925,2696.6,2696.1,8.17783]
[1727496587495,7.35,2696.6,2696.1,8.17783]
[1727496587787,4.48577925,2696.7,2696.1,4.46886]
[1727496588317,1.92304608,2696.8,2696.3,3.70877]
[1727496588675,1.14558683,2696.8,2696.4,3.70856]
[1727496588913,0.38778683,2696.8,2696.5,3.70849]
[1727496589214,0.38778683,2696.8,2696.1,0.7599]
[1727496589215,0.77745925,2697.0,2696.4,3.35630484]
[1727496589421,5.49054325,2697.0,2696.4,3.70864]
[1727496589916,0.048166,2696.9,2696.4,3.70864]
[1727496590713,0.87562531,2696.9,2696.4,3.70864]
[1727496590923,0.09816606,2696.9,2696.4,3.70864]
[1727496591293,0.87562531,2696.9,2696.4,3.70864]
[1727496591492,0.09816606,2696.9,2696.4,3.70864]
[1727496591707,0.09816606,2696.9,2696.4,3.70855]
[1727496591918,0.048166,2696.9,2696.4,3.70855]
[1727496592622,0.048166,2696.9,2696.5,3.70848]
[1727496593119,0.84947507,2696.9,2696.4,3.7086]
[1727496593812,4.55745507,2696.9,2696.3,3.70877]
[1727496594324,0.84947507,2696.9,2696.3,7.41747]
[1727496594727,0.84947507,2696.9,2696.4,3.70862]
[1727496597989,0.84947507,2696.9,2696.4,7.41718]
[1727496598189,0.84947507,2696.9,2696.4,3.70856]
[1727496600512,0.84947507,2696.9,2696.4,3.70855]
[1727496600950,0.84947507,2696.9,2696.6,3.70837]
[1727496600951,0.048166,2696.9,2696.6,3.70837]
[1727496601240,0.048166,2696.9,2696.6,7.4166]
[1727496601446,0.048166,2696.9,2696.6,3.70828]
[1727496601740,0.04896853,2696.8,2696.6,7.41656]
[1727496601937,1.58525931,2697.1,2696.7,3.70823]
[1727496602147,0.0488654,2696.7,2696.6,3.70828]
[1727496602307,1.58525931,2697.1,2696.6,3.70828]
[1727496602639,0.0488654,2696.7,2696.6,7.41655]
[1727496602842,1.53525925,2697.1,2696.6,7.41655]
[1727496603003,0.0488654,2696.7,2696.6,3.70827]
[1727496603206,2.21997849,2697.1,2696.6,3.70827]
[1727496603542,2.21997849,2697.1,2696.8,3.70807]
[1727496603745,0.04911843,2697.0,2696.8,3.70807]
[1727496604099,0.04911843,2697.0,2696.9,3.70796]
[1727496604304,1.99500157,2697.3,2696.8,4.49707]
[1727496604609,1.99500157,2697.3,2697.0,3.70782]
[1727496605744,1.21754232,2697.3,2697.0,3.70782]
[1727496605943,1.21754232,2697.3,2696.8,8.20507]
[1727496606721,1.21754232,2697.3,2696.8,4.497]
[1727496606922,0.04898483,2697.2,2696.9,0.07415515]
[1727496607261,5.69653077,2697.6,2696.9,0.07415515]
[1727496607262,0.77745925,2697.5,2696.9,0.07415515]
[1727496607570,1.60035925,2697.6,2697.0,3.70782]
[1727496607722,0.04930177,2697.4,2697.1,3.70764]
[1727496608063,1.60035925,2697.6,2697.1,3.70764]
[1727496608355,0.8229,2697.6,2697.1,3.70764]
[1727496608518,0.04948908,2697.5,2697.1,3.70764]
[1727496608920,0.04948908,2697.5,2697.2,3.70751]
[1727496610522,0.04948908,2697.5,2697.1,0.7916009]
[1727496610730,3.80669914,2697.5,2696.9,3.70785]
[1727496611042,3.80669914,2697.5,2696.8,8.99034048]
[1727496611043,3.70731,2697.4,2696.8,8.99034048]
[1727496611365,0.04949961,2697.3,2696.8,8.99034048]
[1727496611858,0.7975,2697.2,2696.8,4.49332048]
[1727496612156,1.55427247,2697.7,2697.0,3.7078]
[1727496612157,0.04929341,2697.1,2697.0,3.7078]
[1727496612362,0.7975,2697.4,2697.0,3.7078]
[1727496612524,0.04929341,2697.1,2697.0,3.7078]
[1727496612727,0.7975,2697.4,2697.0,4.449375]
[1727496613038,0.04949961,2697.3,2697.0,3.7078]
[1727496618893,0.04749961,2697.3,2697.0,3.7078]
[1727496619055,0.04749961,2697.3,2697.0,3.70772]
[1727496619258,0.04749961,2697.3,2697.0,4.46322]
[1727496620588,0.04749961,2697.3,2697.1,3.70768]
[1727496621979,0.04749961,2697.3,2697.2,3.70754]
[1727496622193,1.57495925,2697.6,2697.2,3.70754]
[1727496622401,0.77745925,2697.5,2697.2,3.70754]
[1727496622546,0.82707774,2697.5,2697.2,3.70754]
[1727496622951,0.04961849,2697.5,2697.2,3.70754]
[1727496623372,0.82707774,2697.5,2697.2,3.70754]
[1727496623783,0.82707774,2697.5,2697.2,4.5692482]
[1727496623985,0.82707774,2697.5,2697.3,3.70739]
[1727496624192,0.82707774,2697.5,2697.2,4.5692482]
[1727496625791,0.82707774,2697.5,2697.2,8.2766282]
[1727496625964,0.82707774,2697.5,2697.2,4.5691682]
[1727496627085,0.82707774,2697.5,2697.3,3.7074]
[1727496627891,0.82707774,2697.5,2697.4,3.70727]
[1727496628191,0.82707774,2697.5,2697.4,6.05908235]
[1727496628192,0.04961849,2697.5,2697.4,6.05908235]
[1727496628350,1.16515095,2697.7,2697.6,3.70699]
[1727496628351,0.3876917,2697.7,2697.6,3.70699]
[1727496628555,1.16515095,2697.7,2697.6,3.70699]
[1727496628756,0.77745925,2697.8,2697.4,6.05908235]
[1727496629105,0.77745925,2697.7,2697.5,3.70713]
[1727496629455,0.77745925,2697.7,2697.4,7.11850227]
[1727496629692,0.04975004,2697.6,2697.4,7.11850227]
[1727496629999,0.04975004,2697.6,2697.4,5.57218992]
[1727496630370,0.82720929,2697.6,2697.4,4.51277]
[1727496630571,0.82720929,2697.6,2697.2,3.70747]
[1727496630572,1.60220929,2697.6,2697.2,3.70747]
[1727496630771,0.77745925,2697.5,2697.2,3.70747]
[1727496630987,0.77745925,2697.4,2697.1,3.70758]
[1727496631158,0.04947625,2697.3,2697.0,4.52706]
[1727496631357,0.8269355,2697.3,2697.1,3.70758]
[1727496632002,0.8269355,2697.3,2697.0,4.52703]
[1727496632003,0.86819209,2697.3,2697.0,4.52703]
[1727496632164,0.86819209,2697.3,2697.1,3.70759]
[1727496634165,0.77745925,2697.2,2697.1,3.70759]
[1727496634379,0.86829844,2697.2,2697.1,3.70759]
[1727496634979,0.86829844,2697.2,2697.0,4.52703]
[1727496635271,0.77745925,2697.1,2696.8,3.70802]
[1727496635466,0.777523,2696.9,2696.8,3.70802]
[1727496635964,0.86833214,2696.9,2696.8,3.70802]
[1727496636678,1.25738991,2696.9,2696.8,3.70802]
[1727496638213,0.775,2696.8,2696.0,4.52844]
[1727496638366,0.77787999,2696.3,2696.0,4.52844]
[1727496638568,0.08990886,2696.2,2696.0,4.52844]
[1727496638808,0.77787999,2696.3,2696.0,4.52844]
[1727496638993,0.77787999,2696.1,2696.0,4.52841]
[1727496639192,0.08986717,2696.1,2696.0,4.52841]
[1727496639878,0.08986717,2696.1,2695.8,4.5287]
[1727496640079,0.86774716,2696.1,2695.9,3.70932]
[1727496640283,0.86774716,2696.1,2695.8,5.23474789]
[1727496641177,0.86774716,2696.1,2695.8,8.94413789]
[1727496641178,0.77787999,2696.0,2695.8,8.94413789]
[1727496641405,0.08920729,2695.9,2695.8,0.8193]
[1727496641716,0.77787999,2695.9,2695.5,0.8193]
[1727496642014,0.77749507,2695.8,2695.4,3.71002]
[1727496642219,0.08879906,2695.7,2695.6,3.70972]
[1727496642417,1.55249507,2695.9,2695.6,3.70972]
[1727496642716,0.08884161,2695.8,2695.6,3.70972]
[1727496646324,0.08884161,2695.8,2695.4,4.452043]
[1727496646619,0.08884161,2695.8,2695.5,3.70979]
[1727496646830,0.08884161,2695.8,2695.6,3.70974]
[1727496648200,0.08884161,2695.8,2695.4,4.451933]
[1727496648398,0.08884161,2695.8,2695.5,3.70984]
[1727496648802,0.08884161,2695.8,2695.4,4.451933]
[1727496649010,0.08884161,2695.8,2695.4,3.70991]
[1727496649284,3.84837167,2695.8,2695.2,3.71024]
[1727496649786,4.62586674,2695.8,2695.2,3.71024]
[1727496650519,3.84837167,2695.8,2695.2,3.71024]
[1727496650901,4.87606734,2695.8,2695.2,3.71024]
[1727496651285,5.65356241,2695.8,2695.3,3.71014]
[1727496651487,4.82601728,2695.8,2695.2,3.71024]
[1727496651827,3.71024,2695.3,2694.6,3.71103]
[1727496652025,0.8176,2695.6,2694.5,3.71115]
[1727496652026,1.64509513,2695.2,2694.5,3.71115]
[1727496652344,1.59509507,2695.6,2695.0,3.71049]
[1727496652515,0.8176,2695.6,2695.1,3.71037]
[1727496652715,0.08750552,2695.5,2695.1,3.71037]
[1727496654418,0.08750552,2695.5,2695.1,3.71035]
[1727496654823,0.08750552,2695.5,2695.1,7.42068]
[1727496655848,0.08750552,2695.5,2695.1,3.71033]
[1727496656949,0.08750552,2695.5,2694.7,0.7911]
[1727496656950,0.08750552,2695.5,2695.3,3.35107887]
[1727496657126,0.08750552,2695.5,2695.4,3.71002]
[1727496657333,4.57662006,2696.2,2695.5,3.70977]
[1727496657721,4.57661006,2696.2,2695.5,3.70977]
[1727496658065,3.70915,2696.1,2695.5,3.70977]
[1727496658860,4.52661,2696.2,2695.4,3.71002]
[1727496659163,3.70921,2696.0,2695.5,3.70987]
[1727496659393,3.70921,2696.0,2695.4,3.70993]
[1727496659532,3.70921,2696.0,2695.4,7.41986]
[1727496659851,0.08785609,2695.9,2695.4,7.41986]
[1727496660257,0.08785609,2695.9,2695.4,3.70993]
[1727496660434,0.08785609,2695.9,2695.4,7.41986]
[1727496660636,0.08785609,2695.9,2695.5,3.70988]
[1727496661283,0.08785609,2695.9,2695.4,7.41987]
[1727496662430,0.08785609,2695.9,2695.4,3.70993]
[1727496662875,0.08785609,2695.9,2695.4,7.41986]
[1727496663108,0.08785609,2695.9,2695.4,3.70993]
[1727496663961,0.08785609,2695.9,2695.4,4.16745204]
[1727496664275,0.08785609,2695.9,2695.4,7.87738204]
[1727496664578,0.08785609,2695.9,2695.4,4.16745204]
[1727496667393,0.08785609,2695.9,2695.4,7.87739204]
[1727496667698,0.08785609,2695.9,2695.4,7.87738204]
[1727496669397,3.79720609,2695.9,2695.4,4.16745204]
[1727496669566,0.7641,2695.8,2695.3,3.71016]
[1727496669895,0.08773158,2695.7,2695.3,3.71016]
[1727496670372,0.7641,2695.8,2695.3,3.71016]
[1727496670567,0.08762988,2695.6,2695.3,3.71016]
[1727496670769,0.08773158,2695.7,2695.3,3.71016]
[1727496670979,0.08752818,2695.5,2695.1,3.71034]
[1727496671186,3.70962,2695.7,2695.1,3.71034]
[1727496671501,3.70962,2695.7,2695.1,7.42069]
[1727496671696,0.08760228,2695.6,2695.3,3.71013]
[1727496671871,0.08760228,2695.6,2695.4,3.70991]
[1727496672200,0.7641,2695.8,2695.5,3.70988]
[1727496672897,0.7641,2695.8,2695.4,3.70991]
[1727496673060,0.7641,2695.8,2695.4,7.41984]
[1727496673259,0.7641,2695.8,2695.4,4.451894]
[1727496673584,0.08743327,2695.7,2695.4,7.41986]
[1727496673779,0.08743327,2695.7,2695.4,3.70991]
[1727496673979,0.7641,2695.8,2695.4,3.70991]
[1727496674385,0.7641,2695.8,2695.5,3.70988]
[1727496674563,0.08743327,2695.7,2695.5,3.70988]
[1727496674765,0.08743327,2695.7,2695.4,7.41985]
[1727496674965,0.7641,2695.8,2695.4,4.080901]
[1727496675485,0.08739174,2695.7,2695.4,4.080901]
[1727496675800,0.7641,2695.8,2695.4,4.080901]
[1727496675982,0.08729004,2695.6,2695.4,4.080901]
[1727496676185,0.7641,2695.8,2695.5,3.70988]
[1727496676384,0.7641,2695.8,2695.4,4.080901]
[1727496677103,0.7641,2695.8,2695.4,7.790841]
[1727496677662,0.7641,2695.8,2695.4,4.080901]
[1727496678588,0.7641,2695.8,2695.5,3.70988]
[1727496678900,0.7641,2695.8,2695.5,3.70543409]
[1727496679567,0.7641,2695.8,2695.4,3.70991]
[1727496679767,0.7641,2695.8,2695.4,7.41985]
[1727496679992,1.54159507,2695.8,2695.4,3.70991]
[1727496680405,1.54159507,2695.8,2695.4,7.41986]
[1727496680563,1.54159507,2695.8,2695.4,7.41984]
[1727496680969,0.77749507,2695.7,2695.4,7.41984]
[1727496681687,0.77749507,2695.7,2695.5,3.70982]
[1727496682486,0.77749507,2695.7,2695.4,3.70991]
[1727496682487,0.77749507,2695.6,2695.4,3.70991]
[1727496683320,0.77749507,2695.5,2695.4,3.70991]
[1727496684517,0.77893146,2695.5,2695.4,3.70991]
[1727496684877,1.16681999,2695.6,2695.4,3.70991]
[1727496685117,0.77891721,2695.5,2695.4,3.70991]
[1727496685420,0.77892495,2695.5,2695.4,3.70991]
[1727496685669,1.16681999,2695.6,2695.5,3.70988]
[1727496685783,1.16863367,2695.6,2695.5,3.70988]
[1727496685975,2.94095262,2695.7,2695.5,3.70988]
[1727496686180,1.38519263,2695.6,2695.5,3.70988]
[1727496686391,2.94095262,2695.6,2695.5,3.70988]
[1727496686676,1.38519263,2695.6,2695.5,3.70988]
[1727496686883,1.55575999,2695.7,2695.5,3.70988]
[1727496687517,1.55575999,2695.6,2695.5,3.70988]
[1727496688609,2.94095262,2695.6,2695.5,3.70988]
[1727496689194,1.16902771,2695.6,2695.5,3.70988]
[1727496689424,1.16902771,2695.6,2695.5,4.530659]
[1727496689600,1.55575999,2695.7,2695.6,4.49764]
[1727496689601,0.77929573,2695.7,2695.6,4.49764]
[1727496689821,0.77929573,2696.0,2695.8,4.49737]
[1727496689990,0.77929573,2696.2,2695.9,3.80638214]
[1727496690317,0.77929573,2696.2,2696.1,3.70906]
[1727496690523,1.16902771,2696.2,2696.1,3.70906]
[1727496690882,1.94752771,2696.2,2696.0,3.70919]
[1727496691123,1.16902771,2696.1,2696.0,3.70919]
[1727496691482,1.16902771,2696.2,2696.1,3.70906]
[1727496692382,1.16902771,2696.3,2696.1,3.70906]
[1727496692615,0.08159885,2696.2,2696.1,3.70906]
[1727496692819,1.16902771,2696.3,2696.1,3.70906]
[1727496693210,0.08159885,2696.2,2696.1,3.70906]
[1727496693542,0.77830672,2696.2,2696.1,3.70906]
[1727496693740,0.08159885,2696.2,2696.1,3.70906]
[1727496694235,0.8597829,2696.2,2696.1,3.70906]
[1727496695904,1.68693362,2696.2,2695.9,3.70926]
[1727496696209,1.5565766,2696.0,2695.9,3.70926]
[1727496696411,1.63659384,2696.0,2695.9,3.70926]
[1727496697625,0.85851724,2696.0,2695.9,3.70926]
[1727496697938,0.85805219,2696.0,2695.9,3.70926]
[1727496698836,0.85813319,2696.0,2695.9,3.70926]
[1727496699902,0.85815715,2696.0,2695.9,3.70926]
[1727496700303,0.08001724,2696.0,2695.9,3.70926]
[1727496701152,1.24904495,2696.0,2695.8,3.70938]
[1727496701347,0.77819614,2695.9,2695.8,3.70938]
[1727496701663,0.07982859,2695.9,2695.8,3.70938]
[1727496701863,0.85809146,2695.9,2695.8,3.70938]
[1727496703961,0.07982859,2695.9,2695.8,3.70938]
[1727496704554,0.85814021,2695.9,2695.8,3.70938]
[1727496706270,0.07982859,2695.9,2695.8,3.70938]
[1727496706673,0.85814021,2695.9,2695.8,3.70938]
[1727496707344,0.07982859,2695.9,2695.8,3.70938]
[1727496707544,0.85814021,2695.9,2695.8,3.70938]
[1727496708461,0.07982859,2695.9,2695.8,3.70938]
[1727496708662,0.85814021,2695.9,2695.8,3.70938]
[1727496708896,0.07982859,2695.9,2695.8,5.2574768]
[1727496714698,0.07982859,2695.9,2695.8,3.70938]
[1727496715693,0.85814021,2695.9,2695.8,3.70938]
[1727496715933,0.07982859,2695.9,2695.8,3.70938]
[1727496716093,0.85814021,2695.9,2695.8,3.70938]
[1727496718208,1.2488563,2695.9,2695.8,3.70938]
[1727496718390,1.60812793,2695.9,2695.6,4.5378]
[1727496718590,1.60812793,2695.9,2695.6,3.7097]
[1727496718591,0.7784762,2695.7,2695.6,3.7097]
[1727496719038,0.85820028,2695.7,2695.6,3.7097]
[1727496722031,0.07972408,2695.7,2695.6,3.7097]
[1727496722227,1.16902771,2695.8,2695.5,5.2579668]
[1727496722428,1.16902771,2695.8,2695.7,3.70961]
[1727496722737,1.24899384,2695.8,2695.7,3.70961]
[1727496727278,0.07996613,2695.8,2695.7,3.70961]
[1727496727932,1.46476847,2695.8,2695.7,3.70961]
[1727496728766,1.24826674,2695.8,2695.7,3.70961]
[1727496730891,0.07996613,2695.8,2695.7,5.2577068]
[1727496731091,0.07996613,2695.8,2695.7,5.33189111]
[1727496731390,0.07996613,2695.8,2695.7,6.0131068]
[1727496731597,0.85890745,2695.8,2695.7,6.0131068]
[1727496732396,1.24839817,2695.8,2695.7,6.0131068]
[1727496732573,0.07996613,2695.8,2695.7,6.0131068]
[1727496732770,1.24839817,2695.8,2695.7,6.0131068]
[1727496733091,0.07996613,2695.8,2695.7,6.0131068]
[1727496733402,1.24839817,2695.8,2695.7,6.0131068]
[1727496734070,1.24839817,2695.8,2695.7,4.46501]
[1727496735684,1.24889106,2695.8,2695.7,4.46501]
[1727496736083,1.24889106,2695.8,2695.7,3.70961]
[1727496736488,2.46032612,2695.8,2695.6,3.70974]
[1727496736665,1.38578527,2695.7,2695.6,3.70974]
[1727496736865,3.02120212,2695.7,2695.6,3.70974]
[1727496737198,0.07965686,2695.7,2695.6,3.70974]
[1727496737383,3.02127836,2695.7,2695.6,3.70974]
[1727496737589,1.16913643,2695.7,2695.6,3.70974]
[1727496737885,1.46550212,2695.7,2695.6,3.70974]
[1727496738492,1.24882823,2695.7,2695.6,3.70974]
[1727496741492,0.07965686,2695.7,2695.6,3.70974]
[1727496741688,1.38625147,2695.7,2695.6,3.70974]
[1727496741893,0.85922887,2695.7,2695.6,8.4360997]
[1727496742203,0.85922887,2695.7,2695.6,8.36191068]
[1727496742377,0.07964499,2695.7,2695.6,8.36191068]
[1727496742940,0.77958388,2695.8,2695.7,3.70961]
[1727496743219,0.77958388,2695.8,2695.7,6.61969455]
[1727496743379,0.77958388,2695.9,2695.8,3.70947]
[1727496744031,0.85944808,2695.9,2695.8,3.70947]
[1727496745508,0.0798642,2695.9,2695.8,3.70947]
[1727496745908,0.85926939,2695.9,2695.8,3.70947]
[1727496746109,0.0798642,2695.9,2695.8,3.70947]
[1727496746308,0.8592486,2695.9,2695.8,3.70947]
[1727496746635,0.85925159,2695.9,2695.8,3.70947]
[1727496747739,0.85925159,2695.9,2695.8,5.20760352]
[1727496748333,0.0798642,2695.9,2695.8,6.08238504]
[1727496748932,0.77938739,2696.1,2696.0,3.70919]
[1727496749132,0.77938739,2696.1,2696.0,5.2572868]
[1727496749434,0.77938739,2696.1,2696.0,6.38382083]
[1727496751227,0.08001613,2696.1,2696.0,6.38382083]
[1727496751750,0.85940352,2696.1,2696.0,6.38382083]
[1727496752318,0.08001613,2696.1,2696.0,6.38382083]
[1727496763025,0.77938739,2696.3,2696.0,2.67463083]
[1727496763359,0.77938739,2696.3,2696.2,3.70892]
[1727496765491,0.85969779,2696.3,2696.2,3.70892]
[1727496767369,0.85969779,2696.3,2696.1,7.4181]
[1727496767693,1.59908739,2696.2,2695.9,3.70925]
[1727496767893,0.77830512,2696.0,2695.9,3.70925]
[1727496768296,0.85865842,2696.0,2695.9,3.70925]
[1727496768456,0.85877655,2696.0,2695.9,3.70925]
[1727496768654,0.0803533,2696.0,2695.9,3.70925]
[1727496769896,1.24982083,2696.0,2695.9,3.70925]
[1727496770565,0.85883873,2696.0,2695.9,3.70925]
[1727496770765,0.85883981,2696.0,2695.9,3.70925]
[1727496780522,0.8490533,2696.0,2695.7,3.70951]
[1727496780726,1.16843269,2695.8,2695.7,3.70951]
[1727496781225,1.24531509,2695.8,2695.7,3.70951]
[1727496784035,0.7687,2695.7,2695.6,3.7097]
[1727496784196,3.70401066,2695.7,2695.6,3.7097]
[1727496784398,3.7806886,2695.7,2695.6,3.7097]
[1727496784731,3.7806886,2695.7,2695.4,7.41988]
[1727496784889,1.16844309,2695.6,2695.5,3.70988]
[1727496785228,1.2449844,2695.6,2695.5,3.70988]
[1727496786386,1.2449844,2695.6,2695.4,3.7099]
[1727496786626,1.16824205,2695.5,2695.4,3.7099]
[1727496787025,1.24182003,2695.5,2695.4,3.7099]
[1727496788210,0.07357798,2695.5,2695.4,3.7099]
[1727496789343,0.85191836,2695.5,2695.4,3.7099]
[1727496793143,0.07357798,2695.5,2695.4,3.7099]
[1727496793294,0.85191836,2695.5,2695.4,3.7099]
[1727496793496,0.07357798,2695.5,2695.4,3.7099]
[1727496798762,0.77834038,2695.7,2695.4,4.5158]
[1727496798958,0.77834038,2695.7,2695.5,3.70975]
[1727496800314,0.77834038,2695.7,2695.6,3.70974]
[1727496800858,1.95024205,2695.9,2695.6,3.70974]
[1727496800859,0.77834038,2695.8,2695.6,3.70974]
[1727496801864,0.77834038,2695.8,2695.7,5.2577068]
[1727496802157,0.77834038,2696.1,2696.0,3.70919]
[1727496802375,0.77834038,2696.2,2696.0,3.70919]
[1727496802563,0.7776204,2696.2,2696.1,3.70906]
[1727496804277,1.16824205,2696.4,2696.1,6.0630568]
[1727496804435,1.16824205,2696.4,2696.2,3.70892]
[1727496804436,0.77765028,2696.3,2696.2,3.70892]
[1727496807374,0.77764582,2696.4,2696.3,3.70878]
[1727496808335,0.77764582,2696.4,2696.2,3.70884]
[1727496810186,0.77764582,2696.4,2696.1,6.0629368]
[1727496811341,0.77764582,2696.3,2696.1,6.0629368]
[1727496811543,0.77764582,2696.3,2696.1,5.2570368]
[1727496812966,0.77764582,2696.3,2696.1,3.70894]
[1727496813765,1.53804582,2696.2,2695.9,7.41851]
[1727496813959,1.53804582,2696.2,2695.9,3.70925]
[1727496814264,1.53804582,2696.2,2695.9,3.70924]
[1727496814585,0.77764582,2696.1,2695.9,3.70924]
[1727496815750,1.53804582,2696.2,2695.9,3.70924]
[1727496816055,0.77764582,2696.1,2695.9,3.70924]
[1727496818602,1.53804582,2696.2,2695.9,3.70924]
[1727496819376,0.77764582,2696.1,2695.9,3.70924]
[1727496820502,0.77764582,2696.2,2695.9,8.02424368]
[1727496820692,0.77764582,2696.2,2695.9,4.31499368]
[1727496820874,0.77764582,2696.2,2695.9,3.70924]
[1727496822199,0.77764582,2696.2,2695.9,7.41849]
[1727496822810,0.77764582,2696.2,2695.9,3.70924]
[1727496822996,0.77764582,2696.2,2696.0,3.70918]
[1727496828752,0.77764582,2696.2,2696.1,3.70906]
[1727496829264,0.77764582,2696.5,2696.1,6.89856516]
[1727496829418,0.77764582,2696.6,2696.5,3.70851]
[1727496829624,0.77764582,2696.7,2696.6,3.70837]
[1727496829866,0.77764582,2696.8,2696.7,3.70823]
[1727496830373,0.77764582,2696.9,2696.7,3.70823]
[1727496831143,0.77764582,2696.8,2696.7,3.70823]
[1727496831339,0.77764582,2696.9,2696.7,3.70823]
[1727496832528,0.77764582,2696.9,2696.8,3.70809]
[1727496832725,1.57384582,2697.0,2696.8,3.70809]
[1727496832955,0.77764582,2697.0,2696.9,1.5480968]
[1727496833137,0.77764582,2697.3,2697.1,3.70768]
[1727496833340,0.38762238,2697.4,2697.3,3.70741]
[1727496833545,0.77764582,2697.6,2697.3,1.5480968]
[1727496834572,0.77764582,2697.6,2697.4,3.70727]
[1727496835267,0.77764582,2697.6,2697.2,3.70754]
[1727496835471,0.77764582,2697.6,2697.0,4.53314]
[1727496835641,0.77764582,2697.6,2697.2,3.70751]
[1727496838276,1.57384582,2697.7,2697.2,3.70751]
[1727496840685,5.28074582,2697.7,2697.0,6.0812368]
[1727496840844,4.53464588,2697.6,2697.0,4.53314]
[1727496841387,4.45835,2697.4,2696.8,4.46582]
[1727496841689,0.445835,2697.3,2696.8,3.70802]
[1727496841994,0.751,2697.1,2696.6,4.46611]
[1727496842200,1.52864582,2697.1,2696.6,3.70831]
[1727496842500,0.751,2697.1,2696.7,3.70823]
[1727496843291,1.52864582,2697.1,2696.7,3.70823]
[1727496843657,1.52864582,2697.1,2696.6,3.70831]
[1727496844075,0.751,2697.1,2696.7,3.70818]
[1727496844252,1.52864582,2697.1,2696.7,3.70818]
[1727496844455,1.52864582,2697.1,2696.6,3.70831]
[1727496845177,1.52864582,2697.1,2696.7,3.70822]
[1727496845472,1.52864582,2697.1,2696.6,3.70831]
[1727496846272,0.77764582,2697.0,2696.6,3.70831]
[1727496846494,0.751,2697.1,2696.6,3.70831]
[1727496846495,1.52864582,2697.1,2696.6,3.70831]
[1727496847991,0.77764582,2697.0,2696.6,3.70831]
[1727496848458,1.41809161,2697.0,2696.6,3.70831]
[1727496850151,1.16824205,2697.2,2697.0,0.8101]
[1727496850356,0.38757373,2697.6,2697.5,3.70713]
[1727496850589,0.7919,2697.9,2697.7,3.70685]
[1727496851153,0.7919,2697.9,2697.5,5.2551668]
[1727496851352,0.7919,2697.9,2697.5,5.2551168]
[1727496851656,0.7919,2697.9,2697.6,3.70697]
[1727496851851,0.05644782,2697.8,2697.6,3.70579404]
[1727496853612,0.05644782,2697.8,2697.6,7.41269404]
[1727496853774,0.05644782,2697.8,2697.7,3.70686]
[1727496854103,5.64476621,2698.5,2697.7,3.70686]
[1727496854104,2.33032161,2699.2,2698.2,0.7964]
[1727496854275,1.21207962,2699.2,2698.5,3.70566]
[1727496854473,0.60350816,2699.1,2698.5,3.70566]
[1727496854669,4.52949006,2699.2,2698.5,3.70566]